[Event "*** Titled Tuesday Blitz"]
[Site "Chess.com"]
[Date "2019.10.01"]
[Round "2"]
[White "smshk35"]
[Black "DeGrootteZ"]
[Result "1-0"]
[WhiteElo "2373"]
[BlackElo "2666"]
[TimeControl "180+2"]
[EndTime "13:24:23 PDT"]
[Termination "smshk35 won by resignation"]

1. e4 {[%clk 0:03:01.9]} 1... c5 {[%clk 0:02:58.2]} 2. Nf3 {[%clk 0:03:01.3]}
2... d6 {[%clk 0:02:59.5]} 3. d4 {[%clk 0:03:01.2]} 3... cxd4 {[%clk 0:03:01.4]}
4. Nxd4 {[%clk 0:03:02.2]} 4... Nf6 {[%clk 0:03:02.8]} 5. Nc3 {[%clk 0:03:03.2]}
5... a6 {[%clk 0:03:03.7]} 6. h3 {[%clk 0:03:04.4]} 6... Nc6 {[%clk 0:03:04.1]}
7. Be3 {[%clk 0:02:59.9]} 7... e5 {[%clk 0:03:00.3]} 8. Nf3 {[%clk 0:02:58.5]}
8... Be7 {[%clk 0:03:00.2]} 9. Qd2 {[%clk 0:02:54]} 9... Be6 {[%clk 0:02:54.5]}
10. g4 {[%clk 0:02:54.3]} 10... h6 {[%clk 0:02:49.8]} 11. O-O-O {[%clk
0:02:50.9]} 11... b5 {[%clk 0:02:51]} 12. a3 {[%clk 0:02:32.7]} 12... Rb8 {[%clk
0:02:41.3]} 13. g5 {[%clk 0:02:27]} 13... hxg5 {[%clk 0:02:35.8]} 14. Nxg5
{[%clk 0:02:27.9]} 14... b4 {[%clk 0:02:33.3]} 15. axb4 {[%clk 0:02:27.5]} 15...
Nxb4 {[%clk 0:02:33]} 16. Nxe6 {[%clk 0:02:28.4]} 16... fxe6 {[%clk 0:02:34.9]}
17. Bc4 {[%clk 0:02:27.7]} 17... Qa5 {[%clk 0:02:18.7]} 18. Kb1 {[%clk
0:02:26.6]} 18... Kf7 {[%clk 0:02:14.7]} 19. f4 {[%clk 0:02:20.3]} 19... Rhc8
{[%clk 0:02:11.8]} 20. Bb3 {[%clk 0:02:12.2]} 20... Nxc2 {[%clk 0:02:00.4]} 21.
Qxc2 {[%clk 0:01:38]} 21... Nxe4 {[%clk 0:01:54]} 22. Bd2 {[%clk 0:01:08.7]}
22... Nxd2+ {[%clk 0:01:43.9]} 23. Rxd2 {[%clk 0:01:08.7]} 23... Qb4 {[%clk
0:01:36.5]} 24. Qf5+ {[%clk 0:01:05.2]} 24... Ke8 {[%clk 0:01:35.2]} 25. Qxe6
{[%clk 0:00:39.2]} 25... Qxb3 {[%clk 0:01:33]} 26. Qxb3 {[%clk 0:00:40.2]} 26...
Rxb3 {[%clk 0:01:34.9]} 27. Nd5 {[%clk 0:00:41.5]} 27... Bf6 {[%clk 0:01:26]}
28. Nxf6+ {[%clk 0:00:41.1]} 28... gxf6 {[%clk 0:01:25.4]} 29. Rxd6 {[%clk
0:00:42.2]} 29... Rcb8 {[%clk 0:01:18.2]} 30. Rh2 {[%clk 0:00:37.3]} 30... exf4
{[%clk 0:01:02.6]} 31. Rxf6 {[%clk 0:00:35.1]} 31... f3 {[%clk 0:01:03.3]} 32.
Rf2 {[%clk 0:00:33.8]} 32... Ke7 {[%clk 0:01:01.1]} 33. R6xf3 {[%clk 0:00:33.2]}
33... Rxf3 {[%clk 0:00:57.2]} 34. Rxf3 {[%clk 0:00:35.1]} 34... Rg8 {[%clk
0:00:56.3]} 35. Kc2 {[%clk 0:00:34.9]} 35... Rg2+ {[%clk 0:00:56.1]} 36. Kb3
{[%clk 0:00:35.8]} 36... Kd7 {[%clk 0:00:54.6]} 37. Rc3 {[%clk 0:00:35.8]} 37...
Rh2 {[%clk 0:00:52.7]} 38. Re3 {[%clk 0:00:35.4]} 38... Kc6 {[%clk 0:00:53.2]}
39. Kc3 {[%clk 0:00:36.3]} 39... Kb5 {[%clk 0:00:53.7]} 40. b3 {[%clk
0:00:36.6]} 40... Kc5 {[%clk 0:00:52.5]} 41. b4+ {[%clk 0:00:33.7]} 41... Kb5
{[%clk 0:00:53.5]} 42. Re5+ {[%clk 0:00:33.4]} 42... Kb6 {[%clk 0:00:53.7]} 43.
Rh5 {[%clk 0:00:34.5]} 43... Kb7 {[%clk 0:00:52.6]} 44. h4 {[%clk 0:00:34.2]}
44... Rh1 {[%clk 0:00:50]} 45. Rh6 {[%clk 0:00:35.1]} 45... Rc1+ {[%clk
0:00:48.8]} 46. Kb2 {[%clk 0:00:36.1]} 46... Rh1 {[%clk 0:00:49.2]} 47. h5
{[%clk 0:00:36.4]} 47... Rh3 {[%clk 0:00:49.7]} 48. Rh8 {[%clk 0:00:34.7]} 48...
Ka7 {[%clk 0:00:43.7]} 49. h6 {[%clk 0:00:35.4]} 49... Kb7 {[%clk 0:00:44.9]}
50. Kc2 {[%clk 0:00:32.9]} 50... Ka7 {[%clk 0:00:44.8]} 51. Kd2 {[%clk
0:00:30.7]} 51... Kb7 {[%clk 0:00:45.5]} 52. h7 {[%clk 0:00:32]} 52... Ka7
{[%clk 0:00:45.6]} 53. Ke2 {[%clk 0:00:33.3]} 53... Rh6 {[%clk 0:00:44.9]} 54.
Kf3 {[%clk 0:00:33.5]} 54... Kb7 {[%clk 0:00:44.9]} 55. Kg4 {[%clk 0:00:34.3]}
55... Rh1 {[%clk 0:00:45.8]} 56. Kg5 {[%clk 0:00:35.4]} 56... Rg1+ {[%clk
0:00:46.8]} 57. Kf6 {[%clk 0:00:33.5]} 57... Rf1+ {[%clk 0:00:47.5]} 58. Ke5
{[%clk 0:00:34.8]} 58... Rh1 {[%clk 0:00:48.1]} 59. Kd6 {[%clk 0:00:32.7]} 59...
Rh6+ {[%clk 0:00:46.6]} 60. Ke7 {[%clk 0:00:24.1]} 60... Rh1 {[%clk 0:00:48.5]}
61. Kf8 {[%clk 0:00:22.1]} 61... Kb6 {[%clk 0:00:44.5]} 62. Kg7 {[%clk
0:00:20.4]} 62... Rg1+ {[%clk 0:00:37.3]} 63. Kf6 {[%clk 0:00:20.9]} 63... Rf1+
{[%clk 0:00:33]} 64. Ke5 {[%clk 0:00:21.5]} 64... Re1+ {[%clk 0:00:18.6]} 65.
Kd4 {[%clk 0:00:22.2]} 65... Rd1+ {[%clk 0:00:18.7]} 66. Kc3 {[%clk 0:00:22.9]}
1-0

[Event "*** Titled Tuesday Blitz"]
[Site "Chess.com"]
[Date "2019.10.01"]
[Round "2"]
[White "2nd_life"]
[Black "arjwezhrtdrz"]
[Result "0-1"]
[WhiteElo "2402"]
[BlackElo "2087"]
[TimeControl "180+2"]
[EndTime "13:24:29 PDT"]
[Termination "arjwezhrtdrz won by resignation"]

1. e4 {[%clk 0:03:01.9]} 1... d5 {[%clk 0:02:58.1]} 2. exd5 {[%clk 0:03:02.1]}
2... Qxd5 {[%clk 0:02:58.7]} 3. Nc3 {[%clk 0:03:02.5]} 3... Qd6 {[%clk
0:02:59.3]} 4. d4 {[%clk 0:03:01.6]} 4... Nf6 {[%clk 0:02:59.9]} 5. Nf3 {[%clk
0:03:02.4]} 5... a6 {[%clk 0:02:56.7]} 6. g3 {[%clk 0:03:00.9]} 6... Nc6 {[%clk
0:02:56.9]} 7. Bg2 {[%clk 0:02:50.8]} 7... Bg4 {[%clk 0:02:57.3]} 8. Be3 {[%clk
0:02:48.8]} 8... e6 {[%clk 0:02:56.6]} 9. h3 {[%clk 0:02:46.2]} 9... Bh5 {[%clk
0:02:55.5]} 10. g4 {[%clk 0:02:37.2]} 10... Bg6 {[%clk 0:02:56.3]} 11. Nh4
{[%clk 0:02:38.3]} 11... Be7 {[%clk 0:02:34.8]} 12. Qf3 {[%clk 0:02:34.4]} 12...
O-O {[%clk 0:02:11.6]} 13. Nxg6 {[%clk 0:02:33.8]} 13... fxg6 {[%clk 0:02:09.5]}
14. Qe2 {[%clk 0:01:57.2]} 14... Rab8 {[%clk 0:01:13.7]} 15. O-O-O {[%clk
0:01:54]} 15... Nb4 {[%clk 0:01:00.3]} 16. Rhe1 {[%clk 0:01:23.7]} 16... Rfe8
{[%clk 0:00:31.1]} 17. Kb1 {[%clk 0:01:17.3]} 17... Nbd5 {[%clk 0:00:31.1]} 18.
Bd2 {[%clk 0:01:13.9]} 18... Nxc3+ {[%clk 0:00:31.5]} 19. Bxc3 {[%clk
0:01:14.6]} 19... Bf8 {[%clk 0:00:32.5]} 20. Qe5 {[%clk 0:01:01.1]} 20... Nd5
{[%clk 0:00:14]} 21. Bxd5 {[%clk 0:00:57.1]} 21... Qxd5 {[%clk 0:00:13.4]} 22.
Qxc7 {[%clk 0:00:52.2]} 22... Rbc8 {[%clk 0:00:14]} 23. Qb6 {[%clk 0:00:43.4]}
23... Qd7 {[%clk 0:00:09.2]} 24. Qb3 {[%clk 0:00:40.3]} 24... Rc6 {[%clk
0:00:09.6]} 25. a3 {[%clk 0:00:30.8]} 25... h6 {[%clk 0:00:08.6]} 26. Ka2 {[%clk
0:00:21.2]} 26... Kh7 {[%clk 0:00:09.4]} 27. Re4 {[%clk 0:00:19.1]} 27... Rec8
{[%clk 0:00:10]} 28. Rde1 {[%clk 0:00:19.7]} 28... b5 {[%clk 0:00:06.6]} 29.
Rxe6 {[%clk 0:00:20.2]} 29... b4 {[%clk 0:00:07.1]} 30. Rxc6 {[%clk 0:00:19.9]}
30... Qxc6 {[%clk 0:00:07.3]} 31. axb4 {[%clk 0:00:18.7]} 31... a5 {[%clk
0:00:07.5]} 32. bxa5 {[%clk 0:00:18]} 32... Ra8 {[%clk 0:00:08]} 33. Re5 {[%clk
0:00:17.2]} 33... Bd6 {[%clk 0:00:08.6]} 34. Qb5 {[%clk 0:00:16.9]} 34... Qc7
{[%clk 0:00:08.8]} 35. Rd5 {[%clk 0:00:15.9]} 35... Bf4 {[%clk 0:00:08.8]} 36.
Rc5 {[%clk 0:00:16.1]} 36... Qf7+ {[%clk 0:00:09.3]} 37. Qc4 {[%clk 0:00:15.2]}
37... Qf8 {[%clk 0:00:10.4]} 38. d5 {[%clk 0:00:12.9]} 38... Bd6 {[%clk
0:00:11.5]} 39. Rc6 {[%clk 0:00:14]} 39... Qxf2 {[%clk 0:00:08.5]} 40. Rxd6
{[%clk 0:00:12]} 40... Qxc2 {[%clk 0:00:09.6]} 41. Rd7 {[%clk 0:00:12.4]} 41...
Rxa5+ {[%clk 0:00:10.4]} 42. Bxa5 {[%clk 0:00:08.9]} 42... Qxc4+ {[%clk
0:00:11.3]} 43. Kb1 {[%clk 0:00:05.8]} 43... Qd3+ {[%clk 0:00:12.4]} 44. Ka2
{[%clk 0:00:05.5]} 44... Qb5 {[%clk 0:00:12.3]} 45. Ra7 {[%clk 0:00:05.4]} 45...
Qxd5+ {[%clk 0:00:13.2]} 46. Ka1 {[%clk 0:00:06.5]} 46... Qd1+ {[%clk
0:00:13.7]} 47. Ka2 {[%clk 0:00:07.9]} 47... Qd4 {[%clk 0:00:14.6]} 48. Rc7
{[%clk 0:00:03.6]} 48... Qd5+ {[%clk 0:00:13.8]} 49. Kb1 {[%clk 0:00:04.4]}
49... Qxa5 {[%clk 0:00:14.8]} 50. Rc3 {[%clk 0:00:06]} 50... Qd5 {[%clk
0:00:14.9]} 51. Kc2 {[%clk 0:00:07]} 51... Qe4+ {[%clk 0:00:15.6]} 52. Kc1
{[%clk 0:00:07.9]} 52... h5 {[%clk 0:00:16.4]} 53. gxh5 {[%clk 0:00:03.7]} 53...
gxh5 {[%clk 0:00:17.5]} 54. b3 {[%clk 0:00:04.3]} 54... g5 {[%clk 0:00:18.5]}
55. Kd2 {[%clk 0:00:05.7]} 55... g4 {[%clk 0:00:19.6]} 56. hxg4 {[%clk 0:00:07]}
56... Qxg4 {[%clk 0:00:20.5]} 57. Ke1 {[%clk 0:00:06.9]} 57... h4 {[%clk
0:00:21.7]} 58. Kf2 {[%clk 0:00:08]} 58... h3 {[%clk 0:00:22.9]} 59. Rg3 {[%clk
0:00:09]} 59... Qh4 {[%clk 0:00:21.8]} 0-1

[Event "*** Titled Tuesday Blitz"]
[Site "Chess.com"]
[Date "2019.10.01"]
[Round "2"]
[White "Grandmaster1369"]
[Black "dragos420"]
[Result "0-1"]
[WhiteElo "2670"]
[BlackElo "2354"]
[TimeControl "180+2"]
[EndTime "13:24:32 PDT"]
[Termination "dragos420 won by resignation"]

1. e4 {[%clk 0:03:01.9]} 1... e5 {[%clk 0:02:55]} 2. Nc3 {[%clk 0:03:00.9]} 2...
Nf6 {[%clk 0:02:53.2]} 3. Bc4 {[%clk 0:02:58.1]} 3... Nc6 {[%clk 0:02:48.6]} 4.
d3 {[%clk 0:02:58.7]} 4... h6 {[%clk 0:02:48.6]} 5. f4 {[%clk 0:02:57.6]} 5...
d6 {[%clk 0:02:43.3]} 6. Nf3 {[%clk 0:02:57.3]} 6... exf4 {[%clk 0:02:24.1]} 7.
Bxf4 {[%clk 0:02:57.5]} 7... g5 {[%clk 0:02:24.4]} 8. Bd2 {[%clk 0:02:52.3]}
8... Bg7 {[%clk 0:02:24.7]} 9. O-O {[%clk 0:02:46.2]} 9... O-O {[%clk
0:02:25.6]} 10. Ne2 {[%clk 0:02:38.6]} 10... Be6 {[%clk 0:02:22.5]} 11. Bb3
{[%clk 0:02:39.3]} 11... Bxb3 {[%clk 0:02:18]} 12. axb3 {[%clk 0:02:41.2]} 12...
Nd7 {[%clk 0:02:09.5]} 13. c3 {[%clk 0:02:38.2]} 13... Ne7 {[%clk 0:02:03]} 14.
Nfd4 {[%clk 0:02:34]} 14... d5 {[%clk 0:01:47.9]} 15. exd5 {[%clk 0:02:26.9]}
15... Nb6 {[%clk 0:01:38.5]} 16. c4 {[%clk 0:02:25.2]} 16... c5 {[%clk
0:01:29.4]} 17. Nf5 {[%clk 0:02:23]} 17... Nxf5 {[%clk 0:01:30.2]} 18. Rxf5
{[%clk 0:02:24.9]} 18... Bxb2 {[%clk 0:01:31.7]} 19. Rb1 {[%clk 0:02:23.3]}
19... Bg7 {[%clk 0:01:32.6]} 20. Ng3 {[%clk 0:02:23.9]} 20... Nc8 {[%clk
0:01:33.5]} 21. Ne4 {[%clk 0:02:07.9]} 21... Nd6 {[%clk 0:01:17.3]} 22. Nxd6
{[%clk 0:02:09.2]} 22... Bd4+ {[%clk 0:01:18.2]} 23. Kh1 {[%clk 0:02:08.3]}
23... Qxd6 {[%clk 0:01:20.1]} 24. Qg4 {[%clk 0:02:05.3]} 24... f6 {[%clk
0:00:37.6]} 25. Bf4 {[%clk 0:01:37.7]} 25... Qe7 {[%clk 0:00:31.2]} 26. d6
{[%clk 0:01:33.7]} 26... Qg7 {[%clk 0:00:29.6]} 27. Bg3 {[%clk 0:01:32.1]} 27...
Rae8 {[%clk 0:00:19.2]} 28. Rbf1 {[%clk 0:01:29.4]} 28... Qg6 {[%clk 0:00:17.5]}
29. Qf3 {[%clk 0:01:30.6]} 29... Re3 {[%clk 0:00:16.9]} 30. Qd5+ {[%clk
0:01:25.2]} 30... Kg7 {[%clk 0:00:18.4]} 31. Bf2 {[%clk 0:01:13.2]} 31... Rxd3
{[%clk 0:00:18.4]} 32. Bxd4 {[%clk 0:01:14.6]} 32... Rxd4 {[%clk 0:00:19.4]} 33.
Qxc5 {[%clk 0:01:15]} 33... Rd2 {[%clk 0:00:15.3]} 34. Qxa7 {[%clk 0:01:09.1]}
34... Rxd6 {[%clk 0:00:09.8]} 35. Qxb7+ {[%clk 0:01:08.6]} 35... Rf7 {[%clk
0:00:11.1]} 36. Qf3 {[%clk 0:01:09.9]} 36... Rfd7 {[%clk 0:00:10.7]} 37. Rb5
{[%clk 0:01:02.5]} 37... Rd3 {[%clk 0:00:11.1]} 38. Qf5 {[%clk 0:00:48.6]} 38...
Qxf5 {[%clk 0:00:10.3]} 39. Rbxf5 {[%clk 0:00:48.7]} 39... Rxb3 {[%clk
0:00:11.9]} 40. Rxf6 {[%clk 0:00:50.1]} 40... Rc3 {[%clk 0:00:13]} 41. Rc6
{[%clk 0:00:49.7]} 41... Rd4 {[%clk 0:00:13]} 42. c5 {[%clk 0:00:23.9]} 42...
Rd5 {[%clk 0:00:13.7]} 43. Rcf6 {[%clk 0:00:18.1]} 43... Rdxc5 {[%clk
0:00:09.8]} 44. Rf7+ {[%clk 0:00:19.6]} 44... Kg6 {[%clk 0:00:11.2]} 45. R1f6+
{[%clk 0:00:19.5]} 45... Kh5 {[%clk 0:00:12.3]} 46. h3 {[%clk 0:00:20.9]} 46...
g4 {[%clk 0:00:10.2]} 47. Rh7 {[%clk 0:00:14.6]} 47... gxh3 {[%clk 0:00:08.3]}
48. Rhxh6+ {[%clk 0:00:15.9]} 48... Kg5 {[%clk 0:00:09.6]} 49. Rfg6+ {[%clk
0:00:15.3]} 49... Kf5 {[%clk 0:00:08.9]} 50. Rf6+ {[%clk 0:00:15.5]} 50... Kg5
{[%clk 0:00:09.8]} 51. gxh3 {[%clk 0:00:14.7]} 51... Rc1+ {[%clk 0:00:10.5]} 52.
Kg2 {[%clk 0:00:16.3]} 52... R5c2+ {[%clk 0:00:11.3]} 53. Kg3 {[%clk 0:00:08.9]}
53... Rg1+ {[%clk 0:00:12.2]} 54. Kf3 {[%clk 0:00:09.3]} 54... Rf1+ {[%clk
0:00:13.6]} 55. Ke4 {[%clk 0:00:07.2]} 55... Rxf6 {[%clk 0:00:15.5]} 56. Rh8
{[%clk 0:00:06.8]} 56... Rcf2 {[%clk 0:00:16]} 57. Ke3 {[%clk 0:00:06.5]} 57...
R2f3+ {[%clk 0:00:16.9]} 58. Ke4 {[%clk 0:00:08]} 58... R3f4+ {[%clk 0:00:17.9]}
59. Ke5 {[%clk 0:00:09.5]} 59... R6f5+ {[%clk 0:00:18.5]} 60. Ke6 {[%clk
0:00:10.7]} 60... Rf1 {[%clk 0:00:19]} 61. h4+ {[%clk 0:00:11.6]} 61... Kg4
{[%clk 0:00:20.2]} 62. Rh7 {[%clk 0:00:06]} 62... Rh5 {[%clk 0:00:20.7]} 0-1

[Event "*** Titled Tuesday Blitz"]
[Site "Chess.com"]
[Date "2019.10.01"]
[Round "2"]
[White "CastleOasisChess"]
[Black "Godzillator"]
[Result "1/2-1/2"]
[WhiteElo "2008"]
[BlackElo "2400"]
[TimeControl "180+2"]
[EndTime "13:24:51 PDT"]
[Termination "Game drawn by agreement"]

1. d4 {[%clk 0:03:01.9]} 1... d5 {[%clk 0:03:00.5]} 2. e3 {[%clk 0:03:02.8]}
2... c6 {[%clk 0:03:01.5]} 3. Bd3 {[%clk 0:03:03.4]} 3... Nf6 {[%clk 0:03:03.1]}
4. Nd2 {[%clk 0:03:04.3]} 4... Bg4 {[%clk 0:03:04.7]} 5. f3 {[%clk 0:03:05.5]}
5... Bh5 {[%clk 0:03:05]} 6. Ne2 {[%clk 0:03:06.5]} 6... e6 {[%clk 0:03:05.9]}
7. Nf4 {[%clk 0:03:07.5]} 7... Bg6 {[%clk 0:03:06.4]} 8. Nxg6 {[%clk 0:03:08.6]}
8... hxg6 {[%clk 0:03:07.8]} 9. O-O {[%clk 0:03:06.9]} 9... Bd6 {[%clk
0:03:08.4]} 10. f4 {[%clk 0:03:08.3]} 10... Nbd7 {[%clk 0:03:08.3]} 11. Nf3
{[%clk 0:03:09.5]} 11... Qc7 {[%clk 0:03:03.4]} 12. Ne5 {[%clk 0:03:10.5]} 12...
Ne4 {[%clk 0:03:01.8]} 13. c3 {[%clk 0:03:03.9]} 13... g5 {[%clk 0:02:48.9]} 14.
Bxe4 {[%clk 0:02:57.7]} 14... dxe4 {[%clk 0:02:49.6]} 15. Qg4 {[%clk 0:02:49.3]}
15... gxf4 {[%clk 0:02:43.9]} 16. exf4 {[%clk 0:02:31.8]} 16... g6 {[%clk
0:02:39.8]} 17. b4 {[%clk 0:02:10.5]} 17... Nf6 {[%clk 0:02:27.9]} 18. Qg5
{[%clk 0:02:11]} 18... Be7 {[%clk 0:02:27.1]} 19. Qg3 {[%clk 0:02:01.9]} 19...
Nh5 {[%clk 0:02:19.3]} 20. Qe3 {[%clk 0:01:56.2]} 20... g5 {[%clk 0:02:18.5]}
21. Qxe4 {[%clk 0:01:48.7]} 21... gxf4 {[%clk 0:02:16]} 22. Bxf4 {[%clk
0:01:43]} 22... Nxf4 {[%clk 0:02:16.9]} 23. Qxf4 {[%clk 0:01:37]} 23... f5
{[%clk 0:02:16.8]} 24. Ng6 {[%clk 0:01:33.5]} 24... Qxf4 {[%clk 0:02:17]} 25.
Nxf4 {[%clk 0:01:32.3]} 25... Kd7 {[%clk 0:02:14.1]} 26. Rae1 {[%clk 0:01:31.8]}
26... Rh6 {[%clk 0:02:14.4]} 27. g3 {[%clk 0:01:29.5]} 27... Bg5 {[%clk
0:02:15.3]} 28. Re2 {[%clk 0:01:28.9]} 28... Rah8 {[%clk 0:02:11.8]} 29. Rg2
{[%clk 0:01:28.2]} 29... Re8 {[%clk 0:02:06.7]} 30. Re2 {[%clk 0:01:24.8]} 30...
Kd6 {[%clk 0:02:01.8]} 31. Re5 {[%clk 0:01:14.2]} 31... Bf6 {[%clk 0:01:59.9]}
32. Re2 {[%clk 0:01:11.7]} 32... e5 {[%clk 0:01:59.6]} 33. dxe5+ {[%clk
0:01:07.6]} 33... Rxe5 {[%clk 0:02:00.6]} 34. Rxe5 {[%clk 0:01:07.7]} 34... Bxe5
{[%clk 0:02:01.5]} 35. Rf3 {[%clk 0:01:02.9]} 35... Bh8 {[%clk 0:01:40]} 36. h4
{[%clk 0:00:56.9]} 36... Ke7 {[%clk 0:01:31.1]} 37. Re3+ {[%clk 0:00:55]} 37...
Kf7 {[%clk 0:01:31.6]} 38. Kf2 {[%clk 0:00:51.1]} 38... Rd6 {[%clk 0:01:32.3]}
39. Ke2 {[%clk 0:00:51.7]} 39... a5 {[%clk 0:01:22.3]} 40. a3 {[%clk 0:00:51.6]}
40... a4 {[%clk 0:01:21.9]} 41. c4 {[%clk 0:00:42.6]} 41... Bd4 {[%clk
0:01:18.5]} 42. Rd3 {[%clk 0:00:38.4]} 42... Rd7 {[%clk 0:01:16]} 43. Kf3 {[%clk
0:00:21.9]} 43... b6 {[%clk 0:01:15.6]} 44. Ne2 {[%clk 0:00:22.3]} 44... c5
{[%clk 0:01:14.1]} 45. bxc5 {[%clk 0:00:22.6]} 45... bxc5 {[%clk 0:01:14.3]} 46.
Nxd4 {[%clk 0:00:24.1]} 46... cxd4 {[%clk 0:01:15.3]} 47. Kf4 {[%clk 0:00:23.9]}
47... Kf6 {[%clk 0:01:16.5]} 48. c5 {[%clk 0:00:22.6]} 48... Rg7 {[%clk
0:01:14.5]} 49. c6 {[%clk 0:00:23.1]} 49... Rg4+ {[%clk 0:01:14.8]} 50. Kf3
{[%clk 0:00:24]} 50... Ke6 {[%clk 0:01:15]} 51. h5 {[%clk 0:00:16.9]} 51... Kd6
{[%clk 0:01:13.5]} 52. h6 {[%clk 0:00:18.2]} 52... Rg8 {[%clk 0:01:13.7]} 53.
Rxd4+ {[%clk 0:00:16]} 53... Kxc6 {[%clk 0:01:14.8]} 54. Kf4 {[%clk 0:00:17.1]}
54... Rg4+ {[%clk 0:01:14.1]} 55. Ke5 {[%clk 0:00:16.6]} 55... Rxg3 {[%clk
0:01:14.5]} 56. h7 {[%clk 0:00:16.7]} 56... Rh3 {[%clk 0:01:14.5]} 57. Kxf5
{[%clk 0:00:18.2]} 57... Rxh7 {[%clk 0:01:14.9]} 58. Rxa4 {[%clk 0:00:19.1]}
58... Re7 {[%clk 0:01:15.7]} 59. Ra6+ {[%clk 0:00:20.4]} 59... Kb5 {[%clk
0:01:15.9]} 60. Ra8 {[%clk 0:00:20]} 60... Re1 {[%clk 0:01:16]} 61. a4+ {[%clk
0:00:20.6]} 61... Kb6 {[%clk 0:01:16.7]} 62. a5+ {[%clk 0:00:21.7]} 62... Kb7
{[%clk 0:01:18]} 63. Rh8 {[%clk 0:00:20.4]} 63... Ra1 {[%clk 0:01:18.7]} 64.
Rh7+ {[%clk 0:00:20.2]} 64... Ka6 {[%clk 0:01:19.4]} 65. Rh8 {[%clk 0:00:18.2]}
65... Rxa5+ {[%clk 0:01:18.9]} 66. Ke6 {[%clk 0:00:19.8]} 66... Rc5 {[%clk
0:01:16.2]} 67. Kd6 {[%clk 0:00:20.8]} 67... Rc1 {[%clk 0:01:17.1]} 68. Ra8+
{[%clk 0:00:21.4]} 68... Kb7 {[%clk 0:01:17.8]} 69. Ra2 {[%clk 0:00:21.7]} 69...
Rd1+ {[%clk 0:01:18]} 70. Ke6 {[%clk 0:00:22.8]} 70... Kc6 {[%clk 0:01:17.4]}
71. Re2 {[%clk 0:00:20.9]} 71... Rc1 {[%clk 0:01:15.4]} 72. Kf5 {[%clk
0:00:21.6]} 72... Kd5 {[%clk 0:01:15.5]} 73. Rd2+ {[%clk 0:00:20.4]} 73... Kc4
{[%clk 0:01:16.2]} 74. Ke5 {[%clk 0:00:19.7]} 74... Re1+ {[%clk 0:01:16.1]} 75.
Kd6 {[%clk 0:00:20.1]} 75... Re8 {[%clk 0:01:16.8]} 76. Kd7 {[%clk 0:00:20.4]}
76... Re5 {[%clk 0:01:16.1]} 77. Kd6 {[%clk 0:00:20.9]} 77... Re3 {[%clk
0:01:16.4]} 78. Kd7 {[%clk 0:00:19.3]} 78... Rh3 {[%clk 0:01:16.4]} 79. Ke7
{[%clk 0:00:18.8]} 79... Rh8 {[%clk 0:01:16.6]} 80. Kf7 {[%clk 0:00:19.4]} 80...
Kc3 {[%clk 0:01:15.6]} 81. Rd1 {[%clk 0:00:17.5]} 81... Rh2 {[%clk 0:01:15.3]}
82. Kf6 {[%clk 0:00:17.2]} 82... Re2 {[%clk 0:01:16]} 83. Rd8 {[%clk 0:00:17]}
83... Kc4 {[%clk 0:01:16.4]} 84. Kf5 {[%clk 0:00:17.4]} 84... Kc5 {[%clk
0:01:16.7]} 85. Kf6 {[%clk 0:00:18.2]} 85... Kc6 {[%clk 0:01:16.6]} 86. Kf5
{[%clk 0:00:18.3]} 86... Kc7 {[%clk 0:01:17.2]} 87. Rd1 {[%clk 0:00:19]} 87...
Kc6 {[%clk 0:01:17.4]} 1/2-1/2